fUST/lending_fUST_20240707
["ID","MTS","AMOUNT","RATE_DAILY","PERIOD"]
[331386206,1720312256369,-547.92177131,0.00043835,120]
[331386207,1720312256379,-500.0,0.00043835,120]
[331386208,1720312256388,-500.0,0.00043835,120]
[331386209,1720312256398,-500.0,0.00043835,120]
[331386210,1720312256408,-500.0,0.00043835,120]
[331386211,1720312256417,-500.0,0.00043835,120]
[331386212,1720312256427,-500.0,0.00043835,120]
[331386213,1720312256437,-500.0,0.00043835,120]
[331386214,1720312256447,-500.0,0.00043835,120]
[331386215,1720312256456,-500.0,0.00043835,120]
[331386216,1720312256466,-500.0,0.00043835,120]
[331386217,1720312256476,-500.0,0.00043835,120]
[331386218,1720312256485,-500.0,0.00043835,120]
[331386219,1720312256495,-500.0,0.00043835,120]
[331386220,1720312256504,-500.0,0.00043835,120]
[331386221,1720312256514,-500.0,0.00043835,120]
[331386222,1720312256523,-500.0,0.00043835,120]
[331386223,1720312256532,-289.17858721,0.00043835,120]
[331386224,1720312256543,-500.0,0.00043835,120]
[331386225,1720312256552,-500.0,0.00043835,120]
[331386226,1720312256563,-319.96929762,0.00043835,120]
[331386227,1720312256572,-500.0,0.00043835,120]
[331386228,1720312256582,-500.0,0.00043835,120]
[331386229,1720312256592,-500.0,0.00043835,120]
[331386230,1720312256602,-500.0,0.00043835,120]
[331386231,1720312256612,-639.95,0.00043835,120]
[331386232,1720312256622,-500.0,0.00043835,120]
[331386233,1720312256632,-500.0,0.00043835,120]
[331386234,1720312256642,-253.46172782,0.00043835,120]
[331386235,1720312256652,-500.0,0.00043835,120]
[331386236,1720312256662,-500.0,0.00043835,120]
[331386237,1720312256671,-500.0,0.00043835,120]
[331386238,1720312256681,-500.0,0.00043835,120]
[331386239,1720312256691,-500.0,0.00043835,120]
[331386240,1720312256700,-500.0,0.00043835,120]
[331386241,1720312256710,-500.0,0.00043835,120]
[331386242,1720312256719,-500.0,0.00043835,120]
[331386243,1720312256729,-500.0,0.00043835,120]
[331386244,1720312256739,-1399.76,0.00043835,120]
[331386245,1720312256748,-1399.76,0.00043835,120]
[331386246,1720312256758,-500.0,0.00043835,120]
[331386247,1720312256768,-500.0,0.00043835,120]
[331386248,1720312256778,-500.0,0.00043835,120]
[331386249,1720312256788,-500.0,0.00043835,120]
[331386250,1720312256798,-509.80111708,0.00043835,120]
[331386251,1720312256808,-520.48664714,0.00043835,120]
[331386252,1720312256818,-500.0,0.00043835,120]
[331386253,1720312256828,-500.0,0.00043835,120]
[331386254,1720312256839,-500.0,0.00043835,120]
[331386255,1720312256849,-562.04,0.00043835,120]
[331386256,1720312256858,-1122.0,0.00043835,120]
[331386257,1720312256867,-1122.0,0.00043835,120]
[331386258,1720312256876,-500.0,0.00043835,120]
[331386259,1720312256886,-500.0,0.00043835,120]
[331386260,1720312256895,-500.0,0.00043835,120]
[331386261,1720312256904,-500.0,0.00043835,120]
[331386262,1720312256914,-500.0,0.00043835,120]
[331386263,1720312256923,-500.0,0.00043835,120]
[331386264,1720312256933,-500.0,0.00043835,120]
[331386265,1720312256942,-500.0,0.00043835,120]
[331386266,1720312256953,-500.0,0.00043835,120]
[331386267,1720312256962,-500.0,0.00043835,120]
[331386268,1720312256972,-500.0,0.00043835,120]
[331386269,1720312256981,-500.0,0.00043835,120]
[331386270,1720312256991,-500.0,0.00043835,120]
[331386271,1720312257001,-500.0,0.00043835,120]
[331386272,1720312257010,-500.0,0.00043835,120]
[331386273,1720312257020,-299.55696642,0.00043835,120]
[331386274,1720312257030,-500.0,0.00043835,120]
[331386275,1720312257039,-500.0,0.00043835,120]
[331386276,1720312257048,-500.0,0.00043835,120]
[331386277,1720312257057,-500.0,0.00043835,120]
[331386278,1720312257067,-374.19826719,0.00043835,120]
[331386279,1720312257079,-513.53,0.00043835,120]
[331386280,1720312257092,-500.0,0.00043835,120]
[331386281,1720312257104,-500.0,0.00043835,120]
[331386282,1720312257113,-500.0,0.00043835,120]
[331386283,1720312257125,-500.0,0.00043835,120]
[331386284,1720312257135,-500.0,0.00043835,120]
[331386285,1720312257145,-500.0,0.00043835,120]
[331386286,1720312257157,-500.0,0.00043835,120]
[331386287,1720312257168,-500.0,0.00043835,120]
[331386288,1720312257178,-500.0,0.00043835,120]
[331386289,1720312257188,-500.0,0.00043835,120]
[331386290,1720312257198,-360.5115069,0.00043835,120]
[331386291,1720312257208,-427.57151659,0.00043835,120]
[331386292,1720312257218,-500.0,0.00043835,120]
[331386293,1720312257227,-500.0,0.00043835,120]
[331386294,1720312257237,-500.0,0.00043835,120]
[331386295,1720312257247,-500.0,0.00043835,120]
[331386296,1720312257256,-500.0,0.00043835,120]
[331386297,1720312257266,-500.0,0.00043835,120]
[331386298,1720312257276,-500.0,0.00043835,120]
[331386299,1720312257285,-189.02032087,0.00043835,120]
[331386300,1720312257294,-500.0,0.00043835,120]
[331386301,1720312257304,-500.0,0.00043835,120]
[331386302,1720312257314,-1802.35,0.00043835,120]
[331386303,1720312257323,-500.0,0.00043835,120]
[331386304,1720312257334,-500.0,0.00043835,120]
[331386305,1720312257346,-1426.86,0.00043835,120]
[331386306,1720312257356,-525.76211544,0.00043835,120]
[331386307,1720312257365,-500.0,0.00043835,120]
[331386308,1720312257375,-504.17721381,0.00043835,120]
[331386309,1720312257386,-500.0,0.00043835,120]
[331386310,1720312257395,-500.0,0.00043835,120]
[331386311,1720312257404,-500.0,0.00043835,120]
[331386312,1720312257414,-500.0,0.00043835,120]
[331386313,1720312257423,-500.0,0.00043835,120]
[331386314,1720312257433,-500.0,0.00043835,120]
[331386315,1720312257443,-500.0,0.00043835,120]
[331386316,1720312257452,-500.0,0.00043835,120]
[331386317,1720312257461,-500.0,0.00043835,120]
[331386318,1720312257471,-500.0,0.00043835,120]
[331386319,1720312257480,-500.0,0.00043835,120]
[331386320,1720312257490,-500.0,0.00043835,120]
[331386321,1720312257499,-500.0,0.00043835,120]
[331386322,1720312257509,-500.0,0.00043835,120]
[331386323,1720312257518,-500.0,0.00043835,120]
[331386324,1720312257528,-500.0,0.00043835,120]
[331386325,1720312257538,-500.0,0.00043835,120]
[331386326,1720312257551,-450.97341784,0.00043835,120]
[331386327,1720312259770,-261.81,0.00016804,2]
[331386328,1720312259782,-14.65537961,0.00016804,2]
[331386329,1720312259791,-195.24890524,0.0001818,2]
[331386330,1720312259800,-500.0,0.000255,2]
[331386331,1720312259810,-297.78081127,0.000255,2]
[331386332,1720312259819,-500.0,0.000255,2]
[331386333,1720312259828,-500.0,0.000255,2]
[331386334,1720312259840,-500.0,0.000255,2]
[331386335,1720312259849,-500.0,0.000255,2]
[331386336,1720312259859,-500.0,0.000255,2]
[331386337,1720312259868,-213.56489841,0.000255,2]
[331386338,1720312259877,-432.42945522,0.000255,2]
[331386339,1720312259888,-211.33066679,0.000255,2]
[331386340,1720312259901,-13.85072477,0.000255,2]
[331386341,1720312259913,-483.41284948,0.00027397,2]
[331386342,1720312259923,-166.666666,0.00034185,2]
[331386343,1720312259931,-132.06975977,0.00035117,2]
[331386344,1720312259943,-34.59690623,0.00035117,2]
[331386345,1720312259952,-166.666666,0.00036049,2]
[331386346,1720312259961,-166.666666,0.00036981,2]
[331386347,1720312259970,-166.666666,0.00037913,2]
[331386348,1720312259980,-166.666666,0.00038845,2]
[331386349,1720312259990,-153.0,0.00039872,2]
[331386350,1720312259999,-153.0,0.00040009,2]
[331386351,1720312260008,-153.0,0.00040009,2]
[331386352,1720312260018,-293.3880832,0.00040009,2]
[331386353,1720312260027,-206.1814845,0.00040009,2]
[331386354,1720312260036,-153.0,0.00040283,2]
[331386355,1720312260046,-2683.18,0.00042134,3]
[331386356,1720312260056,-49.02658216,0.00043835,120]
[331386357,1720312260066,-500.0,0.00043835,120]
[331386358,1720312260077,-274.96027991,0.00043835,120]
[331386359,1720312316621,158.19021239,0.00014999,2]
[331386360,1720312346632,158.19021239,0.00014999,2]
[331386361,1720312354193,154.74467129,0.00014999,2]
[331386362,1720312497684,307.47818319,0.00014999,2]
[331386363,1720312534196,154.74467129,0.00014999,2]
[331386364,1720312549230,154.74467129,0.00014999,2]
[331386365,1720312643638,262.3278843,0.0001,2]
[331386367,1720312730721,154.94537953,0.00012121,2]
[331386369,1720312870401,154.72922386,0.00014692,2]
[331386370,1720312875408,154.72922386,0.00014692,2]
[331386371,1720312878510,181.84215111,0.00014692,2]
[331386372,1720313016552,425.7,0.00010959,2]
[331386374,1720313025189,181.8878663,0.00014692,2]
[331386375,1720313027087,354.75,0.00010959,2]
[331386376,1720313037442,295.63,0.00010959,2]
[331386378,1720313048199,246.36,0.00010959,2]
[331386379,1720313058695,205.3,0.00010959,2]
[331386380,1720313069204,171.08,0.00010959,2]
[331386381,1720313079966,855.43,0.00010959,2]
[331386385,1720313365463,3000.0,0.00014958,2]
[331386464,1720313435902,-300.0,0.00015228,2]
[331386466,1720313435912,-16634.53294322,0.00015229,2]
[331386468,1720313435924,-1004.25000015,0.00015229,2]
[331386491,1720313441927,-7261.21705663,0.00015229,2]
[331386492,1720313441937,-596.4214858,0.00015611,2]
[331386494,1720313441947,-701.9240243,0.00015821,2]
[331386496,1720313441957,-901.90223786,0.00016154,2]
[331386498,1720313441967,-78020.839018,0.00016245,2]
[331386500,1720313441978,-57222.12785795,0.00016254,2]
[331386501,1720313441988,-42231.73992324,0.00016255,2]
[331386503,1720313441997,-250.0,0.00017094,2]
[331386505,1720313442008,-166.666666,0.00017377,2]
[331386507,1720313442018,-1711.08408749,0.000176,2]
[331386509,1720313442028,-181.79643592,0.00017808,2]
[331386511,1720313442039,-166.666666,0.00017851,2]
[331386513,1720313442049,-166.666666,0.00018325,2]
[331386515,1720313442059,-166.666666,0.00018799,2]
[331386517,1720313442069,-250.0,0.00019041,2]
[331386519,1720313442078,-166.666666,0.00019272,2]
[331386521,1720313442087,-166.666666,0.00019746,2]
[331386523,1720313442096,-305.81352789,0.00019989,2]
[331386525,1720313442105,-517.55441746,0.00019989,2]
[331386527,1720313442115,-179597.04404545,0.0001999,2]
[331386529,1720313442127,-132486.31202655,0.0001999,2]
[331386530,1720313442136,-20993.82138769,0.0002,2]
[331386532,1720313442145,-52919.7533802,0.0002,2]
[331386534,1720313442154,-6399.47267925,0.0002,2]
[331386536,1720313442164,-4270.60704784,0.0002,2]
[331386538,1720313442173,-97737.88937347,0.0002,2]
[331386540,1720313442182,-6183.12902571,0.0002,2]
[331386541,1720313442191,-901.90223786,0.00020368,2]
[331386543,1720313442201,-190.40802561,0.00020446,2]
[331386546,1720313442397,-10099.69282481,0.00021,2]
[331386547,1720313442407,-159.003003,0.00021096,2]
[331386548,1720313442417,-570.0,0.00021096,2]
[331386549,1720313442427,-1117.11621423,0.00021917,2]
[331386550,1720313442439,-879.44990711,0.0002217,2]
[331386551,1720313442449,-10849.64472956,0.0002225,2]
[331386552,1720313442462,-1307.86666204,0.000223,2]
[331386553,1720313442471,-11348.54825489,0.00023,2]
[331386554,1720313442481,-200.0,0.00023,2]
[331386555,1720313442490,-901.90223786,0.00024582,2]
[331386556,1720313442500,-1850.21663995,0.00025,2]
[331386557,1720313442511,-1024.80976259,0.00025,2]
[331386558,1720313442520,-45073.15004527,0.00025,2]
[331386559,1720313442531,-301.46108536,0.000253,10]
[331386560,1720313442541,-30000.0,0.00025501,2]
[331386561,1720313442551,-52108.7037465,0.00025501,2]
[331386562,1720313442561,-154.72922386,0.00025902,2]
[331386563,1720313442570,-709698.71305518,0.00026,2]
[331386577,1720313446830,-23244.0,0.00026,2]
[331386582,1720313944500,-300.0,0.00018898,2]
[331386583,1720313944527,-57222.12785795,0.00018899,2]
[331386584,1720313982118,42231.73992324,0.00018899,2]
[331386585,1720314057451,154.72922386,0.00018899,2]
[331386587,1720314133474,155.12405905,0.00018899,2]
[331386589,1720314238014,16936.2789359,0.00018899,2]
[331386592,1720314295272,42231.73992324,0.00016255,2]
[331386593,1720314338189,202.14137635,0.00016255,2]
[331386598,1720314450039,57222.12785795,0.00016254,2]
[331386599,1720314477145,33803.87179517,0.00016255,2]
[331386610,1720314507148,294.46226506,0.00016255,2]
[331386611,1720314555007,36245.65678223,0.00016255,2]
[331386739,1720314638585,-300.0,0.00016254,2]
[331386741,1720314638595,-20976.47107572,0.00016255,2]
[331386743,1720314638605,-420.0,0.00017879,2]
[331386744,1720314638615,-276.46537961,0.00018798,2]
[331386746,1720314638624,-3000.0,0.00018841,2]
[331386748,1720314638634,-155.23289311,0.00018899,2]
[331386750,1720314638643,-1709.9487324,0.000189,2]
[331386751,1720314638653,-190.98130658,0.00019165,2]
[331386752,1720314638662,-587.0,0.00019667,2]
[331386753,1720314638672,-250.0,0.00019924,2]
[331386754,1720314638682,-293.21931504,0.0002,2]
[331386755,1720314638696,-7270.41252796,0.00020873,2]
[331386870,1720314647393,-306.0,0.00020873,2]
[331386892,1720314866384,154.83742071,0.00014999,2]
[331386893,1720314886831,155.34859445,0.00014999,2]
[331386899,1720315215398,1104.60661146,0.00015,2]
[331386902,1720315506563,492.72604013,0.00014999,2]
[331386916,1720315737880,1591.21194752,0.00014999,2]
[331386918,1720315793706,155.04678695,0.00014999,2]
[331386919,1720315796243,260.12071393,0.00014999,2]
[331386920,1720315799804,318.55085575,0.00014999,2]
[331386921,1720315803914,200.0,0.00014999,2]
[331386932,1720315809833,294.36312821,0.00014999,2]
[331386933,1720315840231,193.74688725,0.00014999,2]
[331387062,1720315853511,-2302.60495074,0.00016155,2]
[331387063,1720315853520,-300.0,0.00016253,2]
[331387064,1720315853530,-48858.19293127,0.00016254,2]
[331387083,1720315952566,155.11114267,0.00014999,2]
[331387084,1720315956748,155.06712698,0.00014999,2]
[331387085,1720315959824,408.70068449,0.00014999,2]
[331387086,1720315970126,155.12601676,0.00014999,2]
[331387087,1720315979506,154.7605993,0.00014999,2]
[331387093,1720316249868,1171.0897443,0.0001,2]
[331387095,1720316276654,250.0,0.00015584,2]
[331387097,1720316344905,166.08353655,0.00015584,2]
[331387098,1720316355575,2125.1955874,0.00014999,2]
[331387102,1720316525582,154.91977169,0.00014999,2]
[331387103,1720316537050,304.82557705,0.00014999,2]
[331387104,1720316541144,1162.87317837,0.00014999,2]
[331387105,1720316552084,885.50619533,0.00014999,2]
[331387106,1720316554488,526.36817785,0.00014999,2]
[331387108,1720316557659,207.64985199,0.00014999,2]
[331387109,1720316562221,272.56357647,0.00014999,2]
[331387110,1720316563864,155.01297199,0.00014999,2]
[331387111,1720316565769,488.75511084,0.00014999,2]
[331387112,1720316565800,11034.37113057,0.00014998,2]
[331387114,1720316579335,3137.5012568,0.00014999,2]
[331387116,1720316604084,155.4808929,0.00014999,2]
[331387117,1720316626894,150.0,0.00015945,2]
[331387120,1720316668985,187.98618958,0.00014999,2]
[331387121,1720316672870,738.59227567,0.00014999,2]
[331387122,1720316684144,2171.13733316,0.00014999,2]
[331387123,1720316684175,210.20267471,0.00014999,2]
[331387124,1720316750159,158.99821132,0.00014999,2]
[331387126,1720316803185,492.23,0.00010959,2]
[331387127,1720316853666,250.0,0.00015512,2]
[331387128,1720316893932,17493.3321989,0.00015351,2]
[331387196,1720317038454,-4461.75803356,0.00015351,2]
[331387200,1720317038467,-2944.90976754,0.00015351,2]
[331387203,1720317038477,-300.0,0.00016244,2]
[331387206,1720317038487,-16731.72305156,0.00016245,2]
[331387354,1720317046582,-472.05570391,0.00016245,2]
[331387355,1720317142396,159.73991438,0.00014999,2]
[331387356,1720317145880,210.93318358,0.00014999,2]
[331387357,1720317227414,154.38,0.00015001,2]
[331387361,1720318102063,296.6949815,0.00014976,2]
[331387362,1720318150237,-300.0,0.00015226,2]
[331387363,1720318150273,-555.27478601,0.00015227,2]
[331387364,1720318150314,-855.27478601,0.00015227,2]
[331387365,1720318150362,-753.44770814,0.00015227,2]
[331387366,1720318193168,25876.88,0.0001,20]
[331387367,1720318193199,1000.0,0.0001,20]
[331387368,1720318193221,23313.71001938,0.0001,20]
[331387417,1720318238527,-300.0,0.00015226,2]
[331387418,1720318238537,-11177.28799954,0.00015227,2]
[331387420,1720318238549,-11558.7147203,0.00015227,2]
[331387422,1720318238559,-240.59773679,0.000161,2]
[331387424,1720318238569,-2017.35107511,0.00016154,2]
[331387426,1720318238578,-62634.9628097,0.00016245,2]
[331387428,1720318238589,-57229.3410026,0.00016254,2]
[331387430,1720318238599,-42334.23936705,0.00016255,2]
[331387432,1720318238609,-151.0,0.00016255,2]
[331387434,1720318238619,-151.0,0.00016255,2]
[331387435,1720318238628,-151.0,0.00016255,2]
[331387436,1720318238638,-325.28721,0.00016255,2]
[331387437,1720318238648,-325.28721,0.00016255,2]
[331387438,1720318238658,-323.858782,0.00016255,2]
[331387439,1720318238667,-323.858782,0.00016255,2]
[331387440,1720318238678,-151.0,0.00016255,2]
[331387441,1720318238688,-176.256059,0.00016255,2]
[331387442,1720318238698,-176.256059,0.00016255,2]
[331387443,1720318238708,-151.0,0.00016255,2]
[331387444,1720318238717,-151.0,0.00016255,2]
[331387445,1720318238727,-151.0,0.00016255,2]
[331387446,1720318238739,-186.102835,0.00016255,2]
[331387447,1720318238749,-151.0,0.00016255,2]
[331387448,1720318238759,-151.0,0.00016255,2]
[331387449,1720318238768,-151.0,0.00016255,2]
[331387450,1720318238778,-151.0,0.00016255,2]
[331387451,1720318238788,-151.0,0.00016255,2]
[331387452,1720318238798,-156.85439,0.00016255,2]
[331387453,1720318238808,-151.0,0.00016255,2]
[331387454,1720318238817,-151.0,0.00016255,2]
[331387455,1720318238827,-151.0,0.00016255,2]
[331387456,1720318238837,-151.0,0.00016255,2]
[331387457,1720318238847,-151.0,0.00016255,2]
[331387458,1720318238857,-151.0,0.00016255,2]
[331387459,1720318238867,-195.888983,0.00016255,2]
[331387460,1720318238877,-195.888983,0.00016255,2]
[331387461,1720318238887,-195.888983,0.00016255,2]
[331387462,1720318238901,-195.888983,0.00016255,2]
[331387463,1720318238910,-151.0,0.00016255,2]
[331387464,1720318238920,-151.0,0.00016255,2]
[331387465,1720318238930,-329.655411,0.00016255,2]
[331387466,1720318238940,-329.655411,0.00016255,2]
[331387467,1720318238949,-151.0,0.00016255,2]
[331387468,1720318238959,-151.0,0.00016255,2]
[331387469,1720318238972,-329.655411,0.00016255,2]
[331387470,1720318238983,-329.655411,0.00016255,2]
[331387471,1720318238993,-151.0,0.00016255,2]
[331387472,1720318239002,-151.0,0.00016255,2]
[331387473,1720318239012,-315.455006,0.00016255,2]
[331387474,1720318239022,-315.455006,0.00016255,2]
[331387475,1720318239033,-315.455006,0.00016255,2]
[331387476,1720318239043,-315.455006,0.00016255,2]
[331387477,1720318239054,-151.0,0.00016438,2]
[331387478,1720318239065,-151.0,0.00016438,2]
[331387479,1720318239255,-151.0,0.00016438,2]
[331387480,1720318239266,-222.211161,0.00016438,2]
[331387481,1720318239276,-166.666666,0.00016438,2]
[331387482,1720318239286,-150.0,0.00016509,2]
[331387483,1720318239296,-151.0,0.00016614,2]
[331387484,1720318239306,-151.0,0.00016614,2]
[331387485,1720318239315,-420.0,0.00016749,2]
[331387486,1720318239326,-154.646168,0.00016773,2]
[331387487,1720318239336,-176.256059,0.00016773,2]
[331387488,1720318239345,-176.256059,0.00016773,2]
[331387489,1720318239355,-316.45438319,0.00016806,2]
[331387490,1720318239365,-329.655411,0.00016812,2]
[331387491,1720318239375,-151.0,0.00016812,2]
[331387492,1720318239386,-329.655411,0.00016812,2]
[331387493,1720318239396,-166.666666,0.00016823,2]
[331387494,1720318239406,-166.666666,0.00017208,2]
[331387495,1720318239417,-166.666666,0.00017592,2]
[331387496,1720318239427,-166.666666,0.00017977,2]
[331387497,1720318239437,-325.28721,0.00017977,2]
[331387498,1720318239447,-325.28721,0.00017977,2]
[331387499,1720318239457,-323.858782,0.00017977,2]
[331387500,1720318239467,-323.858782,0.00017977,2]
[331387501,1720318239477,-151.0,0.00017977,2]
[331387502,1720318239488,-151.0,0.00017977,2]
[331387503,1720318239498,-151.0,0.00017977,2]
[331387504,1720318239508,-151.0,0.00017977,2]
[331387505,1720318239518,-195.888983,0.00017977,2]
[331387506,1720318239528,-195.888983,0.00017977,2]
[331387507,1720318239539,-151.0,0.00017977,2]
[331387508,1720318239548,-151.0,0.00017977,2]
[331387509,1720318239559,-315.455006,0.00017977,2]
[331387510,1720318239569,-315.455006,0.00017977,2]
[331387511,1720318239578,-166.666666,0.00018362,2]
[331387512,1720318239588,-587.0,0.00018423,2]
[331387513,1720318239598,-190.98130658,0.00018798,2]
[331387514,1720318239608,-151.0,0.00018798,2]
[331387515,1720318239618,-151.0,0.00018798,2]
[331387516,1720318239628,-151.0,0.00018798,2]
[331387517,1720318239638,-151.0,0.000189,2]
[331387518,1720318239648,-156.524891,0.000189,2]
[331387519,1720318239658,-151.0,0.000189,2]
[331387520,1720318239668,-1143.44670705,0.000189,2]
[331387521,1720318239678,-329.655411,0.000189,2]
[331387522,1720318239688,-329.655411,0.000189,2]
[331387523,1720318239698,-151.0,0.000189,2]
[331387524,1720318239708,-250.0,0.00019041,2]
[331387525,1720318239718,-176.256059,0.00019178,2]
[331387526,1720318239728,-176.256059,0.00019178,2]
[331387527,1720318239740,-152.404395,0.00019178,2]
[331387528,1720318239749,-151.0,0.00019178,2]
[331387529,1720318239760,-315.455006,0.00019178,2]
[331387530,1720318239769,-315.455006,0.00019178,2]
[331387531,1720318239780,-164.732773,0.00019178,2]
[331387532,1720318239789,-172.0004,0.00019178,2]
[331387533,1720318239799,-157.916529,0.00019178,2]
[331387534,1720318239809,-62634.9628097,0.0001999,2]
[331387535,1720318239819,-151.0,0.0001999,2]
[331387536,1720318239829,-315.455006,0.0001999,2]
[331387537,1720318239839,-315.455006,0.0001999,2]
[331387538,1720318239849,-293.21931504,0.0002,2]
[331387539,1720318239859,-534.04504574,0.0002,2]
[331387540,1720318239870,-1948.33198987,0.0002,2]
[331387541,1720318239880,-152.906873,0.0002,2]
[331387542,1720318239890,-151.0,0.0002,2]
[331387543,1720318239904,-325.28721,0.0002,2]
[331387544,1720318239914,-325.28721,0.0002,2]
[331387545,1720318239925,-323.858782,0.0002,2]
[331387546,1720318239935,-323.858782,0.0002,2]
[331387547,1720318239947,-176.256059,0.0002,2]
[331387548,1720318239958,-176.256059,0.0002,2]
[331387549,1720318239968,-151.0,0.0002,2]
[331387550,1720318239979,-151.0,0.0002,2]
[331387551,1720318239990,-151.0,0.0002,2]
[331387552,1720318240000,-151.0,0.0002,2]
[331387553,1720318240011,-151.0,0.0002,2]
[331387554,1720318240021,-151.0,0.0002,2]
[331387555,1720318240032,-151.0,0.0002,2]
[331387556,1720318240042,-151.0,0.0002,2]
[331387557,1720318240052,-151.526875,0.0002,2]
[331387558,1720318240062,-151.0,0.0002,2]
[331387559,1720318240073,-168.08001,0.0002,2]
[331387560,1720318240084,-195.888983,0.0002,2]
[331387561,1720318240095,-195.888983,0.0002,2]
[331387562,1720318240105,-195.888983,0.0002,2]
[331387563,1720318240115,-195.888983,0.0002,2]
[331387564,1720318240126,-329.655411,0.0002,2]
[331387565,1720318240136,-329.655411,0.0002,2]
[331387566,1720318240146,-151.0,0.0002,2]
[331387567,1720318240156,-151.0,0.0002,2]
[331387568,1720318240167,-373.7955816,0.0002,2]
[331387569,1720318240177,-315.455006,0.0002,2]
[331387570,1720318240187,-315.455006,0.0002,2]
[331387571,1720318240196,-151.0,0.00020051,2]
[331387572,1720318240206,-151.0,0.00020051,2]
[331387573,1720318240216,-151.0,0.00020051,2]
[331387574,1720318240226,-151.0,0.00020051,2]
[331387575,1720318240239,-151.0,0.00020051,2]
[331387576,1720318240248,-296.472583,0.00020051,2]
[331387577,1720318240258,-195.888983,0.00020051,2]
[331387578,1720318240268,-195.888983,0.00020051,2]
[331387579,1720318240277,-329.655411,0.00020051,2]
[331387580,1720318240287,-329.655411,0.00020051,2]
[331387581,1720318240296,-151.0,0.00020051,2]
[331387582,1720318240306,-329.655411,0.00020051,2]
[331387583,1720318240315,-151.0,0.00020051,2]
[331387584,1720318240326,-329.655411,0.00020051,2]
[331387585,1720318240336,-664.84033787,0.00020061,2]
[331387586,1720318240346,-823.0,0.00020266,2]
[331387587,1720318240356,-151.0,0.00020407,2]
[331387588,1720318240366,-325.28721,0.00020407,2]
[331387589,1720318240375,-325.28721,0.00020407,2]
[331387590,1720318240384,-323.858782,0.00020407,2]
[331387591,1720318240394,-323.858782,0.00020407,2]
[331387592,1720318240404,-176.256059,0.00020407,2]
[331387593,1720318240415,-176.256059,0.00020407,2]
[331387594,1720318240425,-284.446953,0.00020407,2]
[331387595,1720318240434,-329.655411,0.00020407,2]
[331387596,1720318240444,-211.833906,0.00020407,2]
[331387597,1720318240454,-329.655411,0.00020407,2]
[331387598,1720318240464,-151.0,0.00020407,2]
[331387599,1720318240474,-315.455006,0.00020407,2]
[331387600,1720318240486,-315.455006,0.00020407,2]
[331387601,1720318240495,-2017.35107505,0.00020407,2]
[331387602,1720318240504,-150.07903332,0.00020546,2]
[331387603,1720318240514,-373.0,0.000208,2]
[331387604,1720318240527,-190.332497,0.000208,2]
[331387605,1720318240537,-195.888983,0.000208,2]
[331387606,1720318240546,-195.888983,0.000208,2]
[331387607,1720318240556,-1002.990517,0.000208,2]
[331387608,1720318240566,-151.0,0.00020863,2]
[331387609,1720318240576,-325.28721,0.00020863,2]
[331387610,1720318240586,-325.28721,0.00020863,2]
[331387611,1720318240595,-323.858782,0.00020863,2]
[331387612,1720318240605,-323.858782,0.00020863,2]
[331387613,1720318240615,-176.256059,0.00020863,2]
[331387614,1720318240624,-176.256059,0.00020863,2]
[331387615,1720318240634,-151.0,0.00020863,2]